Workbook

Sheet Sheet1
B2: TBDY-2018 KİRİŞ MİNİMUM ETRİYE HESABI (inş.müh. Gürcan BERBEROĞLU tel:0532 366 02 04 www.betoncelik.com )
AC3: Dikkat sadece sarı hücrelere data girilecek.
J4: sarılma bölgesi | R4: orta bölge | AB4: sarılma bölgesi
J5: =ROUNDUP(K7/S9+1,0) -> 14 | L5: adet sıra etriye | R5: =ROUNDUP(U7/X10+1,0) -> 14 | T5: adet sıra etriye | AB5: =+J5 -> 14 | AD5: adet sıra etriye
I7: 2 * h = | K7: =2*AO13 -> 1200 | M7: mm | U7: =T22-K7-AD7 -> 2600 | W7: mm | AB7: 2 * h = | AD7: =2*AO13 -> 1200 | AF7: mm
P9: =+AR29 -> 1 | Q9: =+J37 -> 10 | S9: =+G47 -> 96 | AB9: =+AR29 -> 1 | AC9: =+Q9 -> 10 | AE9: =+S9 -> 96
I10: 50 | J10: mm | U10: =+AR30 -> 1 | V10: =+J37 -> 10 | X10: =+G50 -> 200 | AH10: 50
AO11: mm | AX11: hf =
AX12: 100 | AZ12: mm
AO13: 600
AP14: =IF(OR(AO13<3*AX12,AO13<300),"artır.","") -> 
AP15: =IF(AO13>3.5*AS18,"azalt.","") -> 
AO16: h =
I18: sc = | K18: =+G47 -> 96 | M18: mm | P18: so = | R18: =+G50 -> 200 | T18: mm | AQ18: bw = | AS18: 250 | AU18: mm
AS19: =IF(AS18<250,"artır.","") -> 
S22: L= | T22: 5000 | V22: mm | AW22: =MAX(6*J37,80) -> 80
C24: Beton ve donatı şartları : | K24: =IF(F25>50,"C50 den fazla beton kullanıldığında aşağıdaki kolon moment kapasite hesabı kullanılamaz.",IF(F25<25,"C25 den az beton kullanılamaz.","")) -> 
C25: fck = C = | F25: 25 | G25: N/mm² (Mpa.) (beton silindirik karakteristik mukavemeti) | AS25: =AO13-2*(G35-J37/2-E40/2) -> 552
C26: fyk = S = | F26: 420 | H26: N/mm² (Mpa.) (boyuna donatı çelik akma mukavemeti)
C27: fywk = S = | G27: 420 | I27: N/mm² (Mpa.) (etriye çelik akma mukavemeti) | AU27: =+AS18-2*(G35-E40/2-J37/2) -> 202
C28: gmc = | E28: 1.5 | K28: =IF(F26<420,"S420 den düşük çelik kullanılamaz.","") ->  | AS28: L= | AT28: =2*(AS25+AU27+AW22) -> 1668 | AW28: mm
C29: fcd = | E29: =+F25 -> 25 | F29: / | G29: =+E28 -> 1.5 | I29: = | J29: =+E29/G29 -> 16.66666667 | L29: N/mm² | AL29: sarılma bölgesinde | AR29: =IF(I38=2,1,IF(I38=4,2,IF(I38=6,3,IF(I38=8,4,"")))) -> 1 | AS29: =+Q9 -> 10 | AU29: =+S9 -> 96 | AW29: mm/mm
C30: gms = | E30: 1.15 | AL30: orta bölgesde | AR30: =+AR29 -> 1 | AS30: =+AS29 -> 10 | AU30: =+X10 -> 200 | AW30: mm/mm
C31: fyd = | E31: =+F26 -> 420 | G31: / | H31: =+E30 -> 1.15 | J31: = | K31: =+E31/H31 -> 365.2173913 | M31: N/mm²
C32: fywd = | F32: =+G27 -> 420 | H32: / | I32: =+E30 -> 1.15 | K32: = | L32: =+F32/I32 -> 365.2173913 | N32: N/mm²
C33: fctk = 0.35 * Ö fck = | I33: 0.35 | K33: *Ö | L33: =+F25 -> 25 | M33: = | N33: =I33*SQRT(L33) -> 1.75 | P33: N/mm²
C34: fctd = fctk / gmc = | H34: =+N33 -> 1.75 | J34: / | K34: =+E28 -> 1.5 | M34: = | N34: =+H34/K34 -> 1.166666667 | P34: N/mm²
C35: pas payı d' = | G35: 35 | I35: mm (pas payı : yapı kenar kirişlerinde 25mm ; yapı içindeki kirişlerde 20mm) | AG35: =IF(G35<=20+J37/2+E40/2,"artır.","") -> 
C36: d = h - d' = | G36: =+AO13 -> 600 | I36: - | J36: =+G35 -> 35 | L36: = | M36: =+G36-J36 -> 565 | O36: mm
C37: kullanılacak etriye çapı : | J37: 10 | L37: mm
C38: etriye kol sayısı n= | I38: =IF(AS18<400,2,IF(AND(AS18>=400,AS18<800),4,IF(AND(AS18>=800,AS18<1200),6,IF(AND(AS18>=1200,AS18<1400),8,10)))) -> 2 | J38: adet
C39: Asw = n * p * Ø² / 4 = | J39: =+I38 -> 2 | K39: * p * | M39: =+J37 -> 10 | O39: ²/ | P39: 4 | Q39: = | R39: =J39*PI()*M39^2/P39 -> 157.0796327 | U39: mm²
C40: Øl = | E40: 12 | G40: mm | I40: (en küçük boyuna donatı çapı)
C41: sc min = somin = Asw * fywd / ( 0,3 * fctd * bw )
C42: sc min = somin = | H42: =+R39 -> 157.0796327 | K42: * | L42: =+L32 -> 365.2173913 | N42: /( | O42: 0.3 | Q42: * | R42: =+N34 -> 1.166666667 | T42: * | U42: =+AS18 -> 250 | W42: )= | X42: =H42*L42/(O42*R42*U42) -> 655.6367277 | AA42: mm
C43: sarılma bölgesi etriye aralığı hesabı
C44: sc max = d / 4 = | H44: =+M36 -> 565 | J44: / | K44: 4 | L44: = | M44: =+H44/K44 -> 141.25 | O44: mm
C45: sc max = 8 * Øl = | H45: 8 | I45: * | J45: =+E40 -> 12 | L45: = | M45: =+H45*J45 -> 96 | O45: mm
C46: sc max = | F46: 150 | H46: mm
C47: seçilen sc = | G47: =ROUNDDOWN(MIN(F46,M45,M44,X42),0) -> 96 | J47: mm
C48: orta bölge etriye aralığı hesabı
C49: so = d / 2 = | G49: =+M36 -> 565 | I49: / | J49: 2 | K49: = | L49: =+G49/J49 -> 282.5 | N49: mm
C50: seçilen so = | G50: =ROUNDDOWN(MIN(L49,X42,200),0) -> 200 | J50: mm
B53: TBDY-2018 DİKDÖRTGEN KOLON MİNİMUM ETRİYE HESABI (inş.müh. Gürcan BERBEROĞLU tel:0532 366 02 04 www.betoncelik.com )
AC54: Dikkat sadece sarı hücrelere data girilecek.
AC55: sarılma bölgesi Lc hesabı
AC56: Lc = 1,5 * bmax = | AI56: 1.5 | AK56: * | AL56: =MAX(Y83,AD90) -> 450 | AN56: = | AO56: =+AI56*AL56 -> 675 | AQ56: mm
R57: sj =< 100 mm | AC57: Lc = Ln / 6 = | AG57: =+U76*1000 -> 3500 | AJ57: / | AK57: 6 | AL57: = | AM57: =+AG57/AK57 -> 583.3333333 | AO57: mm
AC58: Lc = | AE58: 500 | AG58: mm
AC59: kullanılacak Lc = | AH59: =MAX(AE58,AM57,AO56) -> 675 | AJ59: mm
AC61: sarılma bölgesi sc hesabı
AC62: sc >= | AE62: 50 | AG62: mm
AC63: sc =< bmin / 3 = | AH63: =MIN(Y83,AD90) -> 350 | AJ63: / | AK63: 3 | AL63: = | AM63: =+AH63/AK63 -> 116.6666667 | AO63: mm
AC64: sc =< | AE64: 150 | AG64: mm
S65: m | AC65: sc =< 6 * Øl = | AG65: 6 | AH65: * | AI65: =+Y78 -> 16 | AK65: = | AL65: =+AG65*AI65 -> 96 | AN65: mm
S66: =+AH59/1000 -> 0.675 | AC66: kullanılacak sc = | AH66: =MAX(MIN(AL65,AE64,AM63),AE62) -> 96 | AJ66: mm
E67: sc = | G67: =+G70 -> 116 | I67: mm
AC68: orta bölgesi so hesabı
AC69: so =< bmin / 2 = | AH69: =+AH63 -> 350 | AJ69: / | AK69: 2 | AL69: = | AM69: =+AH69/AK69 -> 175 | AO69: mm
E70: =+J117 -> 10 | G70: =IF(AH100="yüksek",H137,AF136) -> 116 | AC70: so =< | AE70: 200 | AG70: mm
AC72: orta bindirme sarılma bölgesi sc hesabı
E73: so = | G73: =+G70 -> 116 | I73: mm | AC73: sc =< bmin / 3 = | AH73: =+AH69 -> 350 | AJ73: / | AK73: 3 | AL73: = | AM73: =+AH73/AK73 -> 116.6666667 | AO73: mm
AC74: sc =< | AE74: 150 | AG74: mm
E75: =+E70 -> 10 | G75: =IF(AH100="yüksek",H141,AF140) -> 175 | S75: m | U75: m | AC75: Lb = max( 0,12 * fyd * Ø / fctd ; 20 * Ø ) = | AO75: =MAX(0.12*K112*Y78/N115,20*Y78) -> 601.0434783 | AQ75: mm
Q76: m | S76: =+U76-S66-S89 -> 2.15 | U76: 3.5
E77: sc = | G77: =+G80 -> 116.6666667 | I77: mm | Q77: =+AO75/1000 -> 0.6010434783 | AB77: ai | AD77: ai | AF77: ai
Y78: 16
U79: Ln =
E80: =+E75 -> 10 | G80: =MIN(AE74,AM73) -> 116.6666667 | Q80: Lb = | AQ80: =MAX(6*J117,80) -> 80
Y81: mm | AH81: ai
E83: so = | G83: =+G75 -> 175 | I83: mm | Y83: 450
Z84: =IF(Y83<300,"artır.","") ->  | AH84: ai | AL84: =+H123 -> 406
AH87: ai | AN87: =E123 -> 306
E88: sc = | G88: =+G67 -> 116 | I88: mm | S88: m
S89: =+S66 -> 0.675 | AL89: L= | AM89: =2*(AL84+AN87+AQ80) -> 1584 | AP89: mm
AD90: 350 | AF90: mm
AD91: =IF(AD90<300,"artır.","") -> 
D93: m | W93: x yönü çiroz | AA93: =+N118-2 -> 1 | AB93: adet
D94: =MIN(Y83,AD90)/1000 -> 0.35 | AD94: y yönü çiroz | AH94: =+N119-2 -> 1 | AI94: adet
D97: bmin =
AC100: süneklik düzeyi | AH100: yüksek | AL100: kolon
AC102: ai max = 25 * Øet = | AI102: 25 | AJ102: * | AK102: =+J117 -> 10 | AM102: = | AN102: =+AI102*AK102 -> 250 | AP102: mm
AC103: ai max = | AF103: 300 | AH103: mm
AC104: seçilen ai = | AG104: =MIN(AN102,AF103) -> 250 | AI104: mm
C105: Beton ve donatı şartları : | K105: =IF(F106>50,"C50 den fazla beton kullanıldığında aşağıdaki kolon moment kapasite hesabı kullanılamaz.",IF(F106<25,"C25 den az beton kullanılamaz.","")) -> 
C106: fck = C = | F106: 25 | G106: N/mm² (Mpa.) (beton silindirik karakteristik mukavemeti)
C107: fyk = S = | F107: 420 | H107: N/mm² (Mpa.) (boyuna donatı çelik akma mukavemeti) | AC107: Nd = | AE107: 1500 | AH107: KN | AJ107: (kolona etkiyen eksenel kuvvet)
C108: fywk = S = | G108: 420 | I108: N/mm² (Mpa.) (etriye çelik akma mukavemeti) | AC108: 0,20 * Ac * fck = | AH108: 0.2 | AJ108: * | AK108: =+K122 -> 157500 | AN108: * | AO108: =+F106 -> 25 | AP108: / | AQ108: 1000 | AS108: = | AT108: =+AH108*AK108*AO108/AQ108 -> 787.5 | AW108: KN
C109: gmc = | E109: 1.5 | K109: =IF(F107<420,"S420 den düşük çelik kullanılamaz.","") ->  | AC109: =+AE107 -> 1500 | AF109: KN | AG109: =IF(AC109<AH109,"<",">") -> > | AH109: =+AT108 -> 787.5 | AK109: KN
C110: fcd = | E110: =+F106 -> 25 | F110: / | G110: =+E109 -> 1.5 | I110: = | J110: =+E110/G110 -> 16.66666667 | L110: N/mm²
C111: gms = | E111: 1.15
C112: fyd = | E112: =+F107 -> 420 | G112: / | H112: =+E111 -> 1.15 | J112: = | K112: =+E112/H112 -> 365.2173913 | M112: N/mm²
C113: fywd = | F113: =+G108 -> 420 | H113: / | I113: =+E111 -> 1.15 | K113: = | L113: =+F113/I113 -> 365.2173913 | N113: N/mm²
C114: fctk = 0.35 * Ö fck = | I114: 0.35 | K114: *Ö | L114: =+F106 -> 25 | M114: = | N114: =I114*SQRT(L114) -> 1.75 | P114: N/mm²
C115: fctd = fctk / gmc = | H115: =+N114 -> 1.75 | J115: / | K115: =+E109 -> 1.5 | M115: = | N115: =+H115/K115 -> 1.166666667 | P115: N/mm²
C116: pas payı d' = | G116: 35 | I116: mm (pas payı : yapı kenar kolonlarda 25mm ; yapı içindeki kolonlarda 20mm) | AG116: =IF(G116<=20+J117/2+Y78/2,"artır.","") -> 
C117: kullanılacak etriye çapı : | J117: 10 | L117: mm
C118: x yönü çiroz dahil etriye kol sayısı n= | N118: =1+ROUNDUP((AD90-2*(G116-Y78/2-J117/2))/AG104,0) -> 3 | O118: adet
C119: y yönü çiroz dahil etriye kol sayısı n= | N119: =1+ROUNDUP((Y83-2*(G116-Y78/2-J117/2))/AG104,0) -> 3 | O119: adet
C120: Aswx = | F120: =+N118 -> 3 | G120: * p * | I120: =+J117 -> 10 | K120: ²/ | L120: 4 | M120: = | N120: =F120*PI()*I120^2/L120 -> 235.619449 | Q120: mm²
C121: Aswy = | F121: =+N119 -> 3 | G121: * p * | I121: =+I120 -> 10 | K121: ²/ | L121: 4 | M121: = | N121: =F121*PI()*I121^2/L121 -> 235.619449 | Q121: mm²
C122: Ac = | E122: =+AD90 -> 350 | G122: * | H122: =+Y83 -> 450 | J122: = | K122: =+E122*H122 -> 157500 | N122: mm² | P122: (kolon enkesit alanı)
C123: Ack = | E123: =AD90-2*(G116-Y78/2-J117/2) -> 306 | G123: * | H123: =Y83-2*(G116-Y78/2-J117/2) -> 406 | J123: = | K123: =+E123*H123 -> 124236 | N123: mm²
C124: scx min = sox min = Aswx * fywd / ( 0,3 * fctd * bw ) = | S124: =+N120 -> 235.619449 | V124: * | W124: =+L113 -> 365.2173913 | Y124: /( | Z124: 0.3 | AB124: * | AC124: =+N115 -> 1.166666667 | AE124: * | AF124: =+AD90 -> 350 | AH124: )= | AI124: =+S124*W124/(Z124*AC124*AF124) -> 702.4679225 | AL124: mm
C125: scy min = soy min = Aswy * fywd / ( 0,3 * fctd * bw ) = | S125: =+N121 -> 235.619449 | V125: * | W125: =+W124 -> 365.2173913 | Y125: /( | Z125: 0.3 | AB125: * | AC125: =+AC124 -> 1.166666667 | AE125: * | AF125: =+Y83 -> 450 | AH125: )= | AI125: =+S125*W125/(Z125*AC125*AF125) -> 546.3639398 | AL125: mm
C126: Süneklik düzeyi yüksek kolon ise ve ( Nd > 0,20*Ac * fck veya Nd < 0,20*Ac * fck) olması durumunda
C127: =IF(AC109>AH109,"sc min = Ash * fywk / ( 0,30 * bk * ( Ac / Ack - 1 ) * fck ) =","sc min = Ash * fywk / ( 0,20 * bk * ( Ac / Ack - 1 ) * fck ) =") -> sc min = Ash * fywk / ( 0,30 * bk * ( Ac / Ack - 1 ) * fck ) = | T127: =+N120 -> 235.619449 | W127: * | X127: =+G108 -> 420 | Z127: /( | AA127: =IF(AC109>AH109,0.3,0.2) -> 0.3 | AC127: * | AD127: =+E123 -> 306 | AF127: *( | AG127: =+K122 -> 157500 | AJ127: / | AK127: =+K123 -> 124236 | AN127: - | AO127: 1 | AP127: )* | AQ127: =+F106 -> 25 | AR127: )= | AS127: =+T127*X127/(AA127*AD127*(AG127/AK127-AO127)*AQ127) -> 161.0462901 | AV127: mm | AX127: (x yönü)
C128: =IF(AC105>AH105,"sc min = Ash * fywk / ( 0,30 * bk * ( Ac / Ack - 1 ) * fck ) =","sc min = Ash * fywk / ( 0,20 * bk * ( Ac / Ack - 1 ) * fck ) =") -> sc min = Ash * fywk / ( 0,20 * bk * ( Ac / Ack - 1 ) * fck ) = | T128: =+N121 -> 235.619449 | W128: * | X128: =+X127 -> 420 | Z128: /( | AA128: =IF(AC109>AH109,0.3,0.2) -> 0.3 | AC128: * | AD128: =+H123 -> 406 | AF128: *( | AG128: =+K122 -> 157500 | AJ128: / | AK128: =+K123 -> 124236 | AN128: - | AO128: 1 | AP128: )* | AQ128: =+AQ127 -> 25 | AR128: )= | AS128: =+T128*X128/(AA128*AD128*(AG128/AK128-AO128)*AQ128) -> 121.3797162 | AV128: mm | AX128: (y yönü)
C129: =IF(AC109>AH109,"sc min = Ash * fywk / ( 0,075 * bk * fck ) =","sc min = Ash * fywk / ( 0,050 * bk * fck ) =") -> sc min = Ash * fywk / ( 0,075 * bk * fck ) = | P129: =+T127 -> 235.619449 | S129: * | T129: =+X127 -> 420 | V129: /( | W129: =IF(AC109>AH109,0.075,0.05) -> 0.075 | Z129: * | AA129: =+AD127 -> 306 | AC129: * | AD129: =+F106 -> 25 | AE129: )= | AF129: =+P129*T129/(W129*AA129*AD129) -> 172.4795967 | AI129: mm | AK129: (kesme kuv. x yönü)
C130: =IF(AC109>AH109,"sc min = Ash * fywk / ( 0,075 * bk * fck ) =","sc min = Ash * fywk / ( 0,050 * bk * fck ) =") -> sc min = Ash * fywk / ( 0,075 * bk * fck ) = | P130: =+T128 -> 235.619449 | S130: * | T130: =+X128 -> 420 | V130: /( | W130: =IF(AC109>AH109,0.075,0.05) -> 0.075 | Z130: * | AA130: =+AD128 -> 406 | AC130: * | AD130: =+AD129 -> 25 | AE130: )= | AF130: =+P130*T130/(W130*AA130*AD130) -> 129.9969374 | AI130: mm | AK130: (kesme kuv. y yönü)
C131: Süneklik düzeyi yüksek kolon ise | AA131: Süneklik düzeyi normal kolon ise
C132: sarılma bölgesi etriye aralığı hesabı | AA132: sarılma bölgesi etriye aralığı hesabı
C133: sc min = | F133: 50 | H133: mm | AA133: sc max = bmin / 3 = | AG133: =+I136 -> 350 | AI133: / | AJ133: 3 | AK133: = | AL133: =+AG133/AJ133 -> 116.6666667 | AN133: mm
C134: sc max = 6 * Øl = | H134: 8 | I134: * | J134: =+Y78 -> 16 | L134: = | M134: =+H134*J134 -> 128 | O134: mm | AA134: sc max = 8 * Øl = | AF134: 8 | AG134: * | AH134: =+Y78 -> 16 | AJ134: = | AK134: =+AF134*AH134 -> 128 | AM134: mm
C135: sc max = | F135: 150 | H135: mm | AA135: sc max = | AD135: 150 | AF135: mm
C136: sc max = bmin / 3 = | I136: =MIN(Y83,AD90) -> 350 | K136: / | L136: 3 | M136: = | N136: =+I136/L136 -> 116.6666667 | P136: mm | AA136: kullanılacak sc = | AF136: =ROUNDDOWN(MIN(AI124,AI125,AL133,AK134,AD135),0) -> 116 | AH136: mm
C137: kullanılacak sc = | H137: =MAX(ROUNDDOWN(MIN(N136,AS127,AF129,AF130,AI124,AI125,AS128,M134,F135),0),F133) -> 116 | J137: mm | AA137: orta bölge etriye aralığı hesabı
C138: orta bölge etriye aralığı hesabı | AA138: so max = | AD138: 200 | AF138: mm
C139: so max = | F139: 200 | H139: mm | AA139: so max = bmin / 2 = | AG139: =+I140 -> 350 | AI139: / | AJ139: 2 | AK139: = | AL139: =+AG139/AJ139 -> 175 | AN139: mm
C140: so max = bmin / 2 = | I140: =+I136 -> 350 | K140: / | L140: 2 | M140: = | N140: =+I140/L140 -> 175 | P140: mm | AA140: kullanılacak so = | AF140: =ROUNDDOWN(MIN(AD138,AL139,AI124,AI125),0) -> 175 | AH140: mm
C141: kullanılacak so = | H141: =ROUNDDOWN(MIN(F139,N140,AI124,AI125),0) -> 175 | J141: mm
B144: TBDY-2018 DAİRESEL KOLON MİNİMUM SPİRAL HESABI (inş.müh. Gürcan BERBEROĞLU tel:0532 366 02 04 www.betoncelik.com )
AC145: Dikkat sadece sarı hücrelere data girilecek.
Q148: sj =< 100 mm
AO155: üstte ve altta bir tur daire dönülecek mi ? | AW155: evet
AE156: 16
AP157: kat yükseklğince spiral donatı boyu
AC158: =+G207-AE156/2-J1931 -> 27 | AE158: mm | AT158: L= | AU158: =(U167*100/(AW161)*SQRT((2*PI()*(AD161/10)/2)^2+(AW161)^2))+IF(AW155="evet",2*(2*PI()*(AD161/10/2)),0) -> 7855.698727 | AX158: cm
AB159: mm | AD159: mm
AA160: =IF(AB161<350,"artır.","") -> 
AB161: 600 | AD161: =+AB161-AC158-AC166 -> 546 | AW161: =+G162/10 -> 8 | AY161: cm
E162: sc = | G162: =IF(AG169="yüksek",H222,AF222) -> 80 | I162: mm
E165: =+J208 -> 10 | G165: =IF(AG169="yüksek",H222,AF222) -> 80
U166: m | AC166: =+AC158 -> 27 | AE166: mm
R167: m | U167: 3.5
R168: =+AP176/1000 -> 0.6010434783
AB169: süneklik düzeyi | AG169: yüksek | AK169: kolon
U170: Ln =
R171: Lb =
AD176: Lb = max( 0,12 * fyd * Ø / fctd ; 20 * Ø ) = | AP176: =MAX(0.12*K203*AE156/N206,20*AE156) -> 601.0434783 | AR176: mm
D184: m
D185: =+AB161/1000 -> 0.6
D188: bmin =
C196: Beton ve donatı şartları : | K196: =IF(F197>50,"C50 den fazla beton kullanıldığında aşağıdaki kolon moment kapasite hesabı kullanılamaz.",IF(F197<25,"C25 den az beton kullanılamaz.","")) -> 
C197: fck = C = | F197: 25 | G197: N/mm² (Mpa.) (beton silindirik karakteristik mukavemeti)
C198: fyk = S = | F198: 420 | H198: N/mm² (Mpa.) (boyuna donatı çelik akma mukavemeti) | AC198: Nd = | AE198: 1500 | AH198: KN | AJ198: (kolona etkiyen eksenel kuvvet)
C199: fywk = S = | G199: 420 | I199: N/mm² (Mpa.) (etriye çelik akma mukavemeti) | AC199: 0,20 * Ac * fck = | AH199: 0.2 | AJ199: * | AK199: =+N210 -> 282743.3388 | AN199: * | AO199: =+F197 -> 25 | AP199: / | AQ199: 1000 | AS199: = | AT199: =+AH199*AK199*AO199/AQ199 -> 1413.716694 | AW199: KN
C200: gmc = | E200: 1.5 | K200: =IF(F198<420,"S420 den düşük çelik kullanılamaz.","") ->  | AC200: =+AE198 -> 1500 | AF200: KN | AG200: =IF(AC200<AH200,"<",">") -> > | AH200: =+AT199 -> 1413.716694 | AK200: KN
C201: fcd = | E201: =+F197 -> 25 | F201: / | G201: =+E200 -> 1.5 | I201: = | J201: =+E201/G201 -> 16.66666667 | L201: N/mm²
C202: gms = | E202: 1.15
C203: fyd = | E203: =+F198 -> 420 | G203: / | H203: =+E202 -> 1.15 | J203: = | K203: =+E203/H203 -> 365.2173913 | M203: N/mm²
C204: fywd = | F204: =+G199 -> 420 | H204: / | I204: =+E202 -> 1.15 | K204: = | L204: =+F204/I204 -> 365.2173913 | N204: N/mm²
C205: fctk = 0.35 * Ö fck = | I205: 0.35 | K205: *Ö | L205: =+F197 -> 25 | M205: = | N205: =I205*SQRT(L205) -> 1.75 | P205: N/mm²
C206: fctd = fctk / gmc = | H206: =+N205 -> 1.75 | J206: / | K206: =+E200 -> 1.5 | M206: = | N206: =+H206/K206 -> 1.166666667 | P206: N/mm²
C207: pas payı d' = | G207: 35 | I207: mm (pas payı : yapı kenar kolonlarda 25mm ; yapı içindeki kolonlarda 20mm) | AG207: =IF(G207<=20+J208/2+AE156/2,"artır.","") -> 
C208: kullanılacak etriye çapı : | J208: 10 | L208: mm
C209: Asw = | F209: 2 | G209: * p * | I209: =+J208 -> 10 | K209: ²/ | L209: 4 | M209: = | N209: =F209*PI()*I209^2/L209 -> 157.0796327 | Q209: mm²
C210: Ac = p * D² / 4 = p * | I210: =+AB161 -> 600 | K210: ²/ | L210: 4 | M210: = | N210: =PI()*I210^2/L210 -> 282743.3388 | Q210: mm² | S210: (kolon enkesit alanı)
C211: Ack = p * Do² / 4 = p * | J211: =+AD161 -> 546 | L211: ²/ | M211: 4 | N211: = | O211: =PI()*J211^2/M211 -> 234139.7589 | R211: mm²
C212: sc min = so min = Asw * fywd / ( 0,3 * fctd * bw ) = | R212: =+N209 -> 157.0796327 | U212: * | V212: =+L204 -> 365.2173913 | X212: /( | Y212: 0.3 | AA212: * | AB212: =+N206 -> 1.166666667 | AD212: * | AE212: =+AB161 -> 600 | AG212: )= | AH212: =+R212*V212/(Y212*AB212*AE212) -> 273.1819699 | AK212: mm
C213: Süneklik düzeyi yüksek kolon ise ve ( Nd > 0,20*Ac * fck veya Nd < 0,20*Ac * fck) olması durumunda
C214: rs = | E214: =IF(AC200>AH200,"0,45 * ( ( Ac / Ack ) - 1 ) * fck / fywk =","0,30 * ( ( Ac / Ack ) - 1 ) * fck / fywk =") -> 0,45 * ( ( Ac / Ack ) - 1 ) * fck / fywk = | Q214: =IF(AC200>AH200,0.45,0.3) -> 0.45 | S214: * ( ( | U214: =+N210 -> 282743.3388 | X214: / | Y214: =+O211 -> 234139.7589 | AB214: )- | AC214: 1 | AD214: )* | AE214: =+F197 -> 25 | AF214: / | AG214: =+G199 -> 420 | AI214: = | AJ214: =+Q214*((U214/Y214)-AC214)*AE214/AG214 -> 0.005560275674
C215: rs = | E215: =IF(AC200>AH200,"0,12 * fck / fywk =","0,08 * fck / fywk =") -> 0,12 * fck / fywk = | K215: =IF(AC200>AH200,0.12,0.12*2/3) -> 0.12 | M215: * | N215: =+F197 -> 25 | O215: / | P215: =+G199 -> 420 | R215: = | S215: =+K215*N215/P215 -> 0.007142857143
C216: Asp = rs * Ack = p * D * Asw / sc
C217: sc = p * D * Asw / ( rs * Ack ) = p * | N217: =+AB161 -> 600 | P217: * | Q217: =+N209 -> 157.0796327 | T217: /( | U217: =MAX(S215,AJ214) -> 0.007142857143 | X217: * | Y217: =+O211 -> 234139.7589 | AB217: )= | AC217: =PI()*N217*Q217/(U217*Y217) -> 177.0410061 | AF217: mm
C218: Süneklik düzeyi yüksek kolon ise | AA218: Süneklik düzeyi normal kolon ise
C219: sarılma ve orta bölgesi spiral aralığı hesabı | AA219: sarılma ve orta bölgesi spiral aralığı hesabı
C220: sc max = | F220: 80 | H220: mm | AA220: sc max = | AD220: 200 | AF220: mm
C221: sc max = so max = D / 5 = | K221: =+AB161 -> 600 | M221: / | N221: 5 | O221: = | P221: =+K221/N221 -> 120 | R221: mm | AA221: sc max = D / 2 = | AF221: =+AB161 -> 600 | AH221: / | AI221: 2 | AJ221: = | AK221: =+AF221/AI221 -> 300 | AM221: mm
C222: kullanılacak sc = | H222: =ROUNDDOWN(MIN(AC217,F220,P221,AH212),0) -> 80 | J222: mm | AA222: kullanılacak sc = | AF222: =ROUNDDOWN(MIN(AH212,AD220,AK221),0) -> 200 | AH222: mm
B225: TBDY-2018 PERDE MİNİMUM ETRİYE HESABI (inş.müh. Gürcan BERBEROĞLU tel:0532 366 02 04 www.betoncelik.com )
AC226: Dikkat sadece sarı hücrelere data girilecek.
AG228: a | AH228: m
AH229: =+AJ236-AH240 -> 10 | AL229: kritik perde yüksekliği dışında
B230: s2 = | D230: =+AP232 -> 200 | F230: mm | AL230: s2 = | AN230: 200 | AP230: mm
AL231: s2 = bw = | AP231: =+D261 -> 300 | AR231: mm
AH232: kritik dışı = | AL232: seçilen s2 = | AP232: =MIN(AP231,AN230) -> 200 | AR232: mm
AL234: kritik perde yüksekliğince
AJ235: m | AL235: s1min = | AO235: 50 | AQ235: mm
AJ236: 15 | AL236: s1max = | AO236: 150 | AQ236: mm
AL237: s1max = bw / 2 = | AR237: =+D261 -> 300 | AT237: / | AU237: 2 | AV237: = | AW237: =+AR237/AU237 -> 150 | AY237: mm
AL238: seçilen s1 = | AP238: =MAX(MIN(AW237,AO236),AO235) -> 150 | AR238: mm
AH239: m | AJ239: yapı perde yüksekliği =
AH240: =+E301 -> 5 | AL240: tüm perde boyunca
F241: a | AL241: s3 = | AN241: 250 | AP241: mm
AH243: kritik per. yük. Hcr =
B245: s1 = | D245: =+O280 -> 95 | F245: mm
Q252: kesit a - a
H253: (kritik perde yüksekliğince) | V253: (kritik perde yüksekliği dışında)
G256: tüm sol kafa donatı | AB256: tüm sağ kafa donatı
G257: 15 | I257: 16 | N257: tüm orta donatı | V257: tüm orta donatı | AB257: 10 | AD257: 16
N258: 14 | P258: 16 | V258: 14 | X258: 16
AJ260: Gövde etriyesi hesabı
B261: bw = | D261: 300 | F261: mm | AJ261: r >= 0,0025 olmalı
AJ262: Ao = | AL262: =2*PI()*O272^2/4 -> 226.1946711 | AO262: mm²
AJ263: s= | AK263: 250 | AM263: mm
AJ264: r = Ao / ( s * bw ) = | AP264: =+AL262 -> 226.1946711 | AS264: /( | AT264: =+AK263 -> 250 | AV264: * | AW264: =+D261 -> 300 | AY264: )
O265: =(W268+2*G294)/(N258/2+1) -> 108.75 | Q265: mm | V265: =(W267+2*G294)/(V258/2+1) -> 158.75 | X265: mm | AJ265: r = | AL265: =+AP264/(AT264*AW264) -> 0.003015928947 | AO265: =IF(AL265<AP265,"<",">") -> > | AP265: 0.0025
O266: =IF(AND(O265<=250,AC325>=S325),"","uygun değil.") ->  | V266: =IF(AND(V265<=250,AJ325>=Z325),"","uygun değil.") ->  | AO266: =IF(AND(AK263<=250,AL265>=AP265),"girilen etriye aralığı yeterli.","girilen etriye aralık fazla.azalt.") -> girilen etriye aralığı yeterli.
M267: kritik perde yüksekliği dışında b= | W267: =S270-2*AC268 -> 1200 | Y267: mm
... 68 more rows
